[Event "*** Titled Tuesday Blitz"]
[Site "Chess.com"]
[Date "2019.11.05"]
[Round "1"]
[White "LuckIsMySkill"]
[Black "Orest_Vovk"]
[Result "1-0"]
[WhiteElo "2768"]
[BlackElo "2410"]
[TimeControl "180+2"]
[EndTime "13:11:05 PST"]
[Termination "LuckIsMySkill won by resignation"]

1. Nf3 {[%clk 0:03:00.8]} 1... c5 {[%clk 0:02:57.7]} 2. c3 {[%clk 0:03:00.7]}
2... Nc6 {[%clk 0:02:58.5]} 3. d4 {[%clk 0:03:01.3]} 3... cxd4 {[%clk
0:02:59.2]} 4. cxd4 {[%clk 0:03:03.2]} 4... d5 {[%clk 0:02:57]} 5. h3 {[%clk
0:03:03.4]} 5... Nf6 {[%clk 0:02:57.8]} 6. Bf4 {[%clk 0:03:04.5]} 6... Bf5
{[%clk 0:02:58.2]} 7. Nc3 {[%clk 0:03:01.8]} 7... e6 {[%clk 0:02:59]} 8. e3
{[%clk 0:03:02.3]} 8... Bd6 {[%clk 0:03:00]} 9. Bb5 {[%clk 0:03:02.9]} 9... Bxf4
{[%clk 0:03:00]} 10. exf4 {[%clk 0:03:04.8]} 10... O-O {[%clk 0:03:01]} 11. Bxc6
{[%clk 0:03:05]} 11... bxc6 {[%clk 0:03:01]} 12. O-O {[%clk 0:03:06.1]} 12...
Ne4 {[%clk 0:03:01.4]} 13. Rc1 {[%clk 0:03:05.6]} 13... Nxc3 {[%clk 0:02:52.4]}
14. Rxc3 {[%clk 0:03:05.1]} 14... Qb6 {[%clk 0:02:49.8]} 15. Qd2 {[%clk
0:03:03]} 15... Qa5 {[%clk 0:02:37.9]} 16. Rfc1 {[%clk 0:02:55.5]} 16... Rab8
{[%clk 0:02:27.7]} 17. a3 {[%clk 0:02:55.2]} 17... Rb6 {[%clk 0:02:14.8]} 18. b4
{[%clk 0:02:46.3]} 18... Qa4 {[%clk 0:02:13]} 19. Ne5 {[%clk 0:02:40.6]} 19...
Rb7 {[%clk 0:01:34.9]} 20. g4 {[%clk 0:02:18.5]} 20... Be4 {[%clk 0:01:32]} 21.
f3 {[%clk 0:02:15.4]} 21... Bg6 {[%clk 0:01:32.8]} 22. Rxc6 {[%clk 0:02:12.3]}
22... Qxa3 {[%clk 0:01:24.6]} 23. Rc8 {[%clk 0:02:08.2]} 23... Rb8 {[%clk
0:01:18.5]} 24. Rxf8+ {[%clk 0:02:05.7]} 24... Rxf8 {[%clk 0:01:18.4]} 25. Qc3
{[%clk 0:02:01.4]} 25... Qa2 {[%clk 0:00:58.7]} 26. Ra1 {[%clk 0:01:32.1]} 26...
Qe2 {[%clk 0:00:48.5]} 27. Re1 {[%clk 0:01:32.8]} 27... Qa2 {[%clk 0:00:47.1]}
28. h4 {[%clk 0:01:33.3]} 28... Bc2 {[%clk 0:00:35.5]} 29. Ra1 {[%clk
0:01:32.7]} 29... Qb3 {[%clk 0:00:34.1]} 30. Qxb3 {[%clk 0:01:33.8]} 30... Bxb3
{[%clk 0:00:36]} 31. Rxa7 {[%clk 0:01:34.4]} 31... f6 {[%clk 0:00:37]} 32. Nc6
{[%clk 0:01:35]} 32... Bc4 {[%clk 0:00:30.3]} 33. f5 {[%clk 0:01:33.4]} 33...
exf5 {[%clk 0:00:28.5]} 34. Ne7+ {[%clk 0:01:34.5]} 34... Kh8 {[%clk 0:00:28.4]}
35. Nxf5 {[%clk 0:01:36.4]} 35... g6 {[%clk 0:00:25.4]} 36. Nd6 {[%clk 0:01:37]}
36... Rb8 {[%clk 0:00:23.8]} 37. Rb7 {[%clk 0:01:30.5]} 37... Ra8 {[%clk
0:00:20.4]} 38. Rf7 {[%clk 0:01:30.4]} 38... Rb8 {[%clk 0:00:16.7]} 39. h5
{[%clk 0:01:22.3]} 39... gxh5 {[%clk 0:00:15.4]} 40. gxh5 {[%clk 0:01:24.2]}
40... Rxb4 {[%clk 0:00:16.6]} 41. h6 {[%clk 0:01:21.5]} 41... Rb8 {[%clk
0:00:16.4]} 42. Rxf6 {[%clk 0:01:22.6]} 42... Bd3 {[%clk 0:00:14.9]} 43. Kf2
{[%clk 0:01:23.5]} 43... Bg6 {[%clk 0:00:15.9]} 44. Ke3 {[%clk 0:01:18.9]} 44...
Kg8 {[%clk 0:00:16.6]} 45. Nf5 {[%clk 0:01:19.2]} 45... Bxf5 {[%clk 0:00:15.5]}
46. Rxf5 {[%clk 0:01:21.1]} 46... Rb6 {[%clk 0:00:16.8]} 47. Rg5+ {[%clk
0:01:20.5]} 47... Kf8 {[%clk 0:00:17.8]} 48. Rh5 {[%clk 0:01:17.2]} 48... Re6+
{[%clk 0:00:17.7]} 49. Kf4 {[%clk 0:01:18.3]} 49... Kg8 {[%clk 0:00:13.7]} 50.
Rg5+ {[%clk 0:01:16.7]} 50... Kf8 {[%clk 0:00:14.2]} 51. Rf5+ {[%clk 0:01:16.7]}
51... Kg8 {[%clk 0:00:14.3]} 52. Kg5 {[%clk 0:01:15.8]} 52... Rg6+ {[%clk
0:00:13.5]} 53. Kh5 {[%clk 0:01:17]} 53... Rd6 {[%clk 0:00:12.3]} 54. f4 {[%clk
0:01:17.6]} 54... Rd8 {[%clk 0:00:11.7]} 55. Rg5+ {[%clk 0:01:15.9]} 55... Kh8
{[%clk 0:00:12.2]} 56. Re5 {[%clk 0:01:17.4]} 56... Kg8 {[%clk 0:00:13]} 57. f5
{[%clk 0:01:17.6]} 57... Kf7 {[%clk 0:00:13.5]} 58. Kg5 {[%clk 0:01:16.9]} 58...
Rd6 {[%clk 0:00:13.2]} 59. Re3 {[%clk 0:01:15.3]} 59... Rd8 {[%clk 0:00:13.5]}
60. Ra3 {[%clk 0:01:16.2]} 60... Rg8+ {[%clk 0:00:14.3]} 61. Kf4 {[%clk
0:01:17.5]} 61... Rg1 {[%clk 0:00:13.9]} 62. Ra7+ {[%clk 0:01:18]} 62... Kf6
{[%clk 0:00:15]} 63. Ra6+ {[%clk 0:01:19.2]} 63... Kf7 {[%clk 0:00:16.2]} 64.
Ke5 {[%clk 0:01:20.4]} 64... Re1+ {[%clk 0:00:13.9]} 65. Kxd5 {[%clk 0:01:21.7]}
65... Re7 {[%clk 0:00:15.5]} 66. Re6 {[%clk 0:01:19.7]} 66... Rd7+ {[%clk
0:00:16.5]} 67. Ke5 {[%clk 0:01:21]} 67... Ra7 {[%clk 0:00:15.9]} 68. d5 {[%clk
0:01:20.2]} 68... Ra1 {[%clk 0:00:16.7]} 69. d6 {[%clk 0:01:19.5]} 69... Ra5+
{[%clk 0:00:15.8]} 70. Kf4 {[%clk 0:01:20.7]} 70... Ra4+ {[%clk 0:00:17]} 71.
Kg5 {[%clk 0:01:21.7]} 71... Ra7 {[%clk 0:00:17.3]} 72. Re3 {[%clk 0:01:18.8]}
72... Ra1 {[%clk 0:00:12.6]} 73. Rd3 {[%clk 0:01:18.9]} 73... Rg1+ {[%clk
0:00:11.4]} 74. Kf4 {[%clk 0:01:20.2]} 74... Ke8 {[%clk 0:00:09.6]} 75. Ke5
{[%clk 0:01:21.5]} 75... Kd7 {[%clk 0:00:10.1]} 76. Kf6 {[%clk 0:01:22]} 76...
Rg8 {[%clk 0:00:09.4]} 77. Ra3 {[%clk 0:01:18.2]} 77... Rf8+ {[%clk 0:00:09.3]}
78. Ke5 {[%clk 0:01:19]} 78... Re8+ {[%clk 0:00:08.6]} 79. Kd5 {[%clk
0:01:20.3]} 79... Re1 {[%clk 0:00:07.9]} 80. Ra7+ {[%clk 0:01:20.9]} 80... Kd8
{[%clk 0:00:09.2]} 81. Rxh7 {[%clk 0:01:21.9]} 81... Rd1+ {[%clk 0:00:10.4]} 82.
Ke6 {[%clk 0:01:23.3]} 82... Re1+ {[%clk 0:00:11.6]} 83. Kf6 {[%clk 0:01:24.7]}
83... Rd1 {[%clk 0:00:12.8]} 84. d7 {[%clk 0:01:26.1]} 84... Rd6+ {[%clk
0:00:13.5]} 85. Kg5 {[%clk 0:01:27.4]} 85... Rd1 {[%clk 0:00:13.4]} 86. Rg7
{[%clk 0:01:28.6]} 86... Rg1+ {[%clk 0:00:13.5]} 87. Kf6 {[%clk 0:01:29.8]}
87... Rh1 {[%clk 0:00:14.1]} 88. h7 {[%clk 0:01:31.2]} 88... Rh6+ {[%clk
0:00:15.4]} 89. Kg5 {[%clk 0:01:31.2]} 89... Rxh7 {[%clk 0:00:16.5]} 90. Rxh7
{[%clk 0:01:32.3]} 1-0

[Event "*** Titled Tuesday Blitz"]
[Site "Chess.com"]
[Date "2019.11.05"]
[Round "1"]
[White "Vuk2000"]
[Black "Tolya2"]
[Result "1-0"]
[WhiteElo "2789"]
[BlackElo "2416"]
[TimeControl "180+2"]
[EndTime "13:11:15 PST"]
[Termination "Vuk2000 won by resignation"]

1. d4 {[%clk 0:03:00.5]} 1... d5 {[%clk 0:02:59.8]} 2. Bf4 {[%clk 0:03:01.2]}
2... e6 {[%clk 0:02:59.3]} 3. e3 {[%clk 0:03:02.1]} 3... Bd6 {[%clk 0:03:00.1]}
4. Bg3 {[%clk 0:03:02.8]} 4... c5 {[%clk 0:03:00.9]} 5. Nd2 {[%clk 0:02:59.8]}
5... Nc6 {[%clk 0:03:01.4]} 6. c3 {[%clk 0:03:00.2]} 6... Nge7 {[%clk
0:03:01.1]} 7. Ngf3 {[%clk 0:02:58]} 7... b6 {[%clk 0:03:00.5]} 8. Bd3 {[%clk
0:02:56.5]} 8... Qc7 {[%clk 0:02:59.2]} 9. O-O {[%clk 0:02:55.7]} 9... O-O
{[%clk 0:02:59.3]} 10. Qe2 {[%clk 0:02:47.9]} 10... Bb7 {[%clk 0:02:56.6]} 11.
Rac1 {[%clk 0:02:33]} 11... Bxg3 {[%clk 0:02:55.5]} 12. hxg3 {[%clk 0:02:33.2]}
12... e5 {[%clk 0:02:56.2]} 13. dxe5 {[%clk 0:02:29.2]} 13... Nxe5 {[%clk
0:02:56.6]} 14. Nxe5 {[%clk 0:02:30.6]} 14... Qxe5 {[%clk 0:02:57.3]} 15. Ba6
{[%clk 0:02:31.8]} 15... Bxa6 {[%clk 0:02:56.1]} 16. Qxa6 {[%clk 0:02:33.7]}
16... Rfd8 {[%clk 0:02:49.1]} 17. Rfe1 {[%clk 0:02:26.2]} 17... Qc7 {[%clk
0:02:49.2]} 18. Nf3 {[%clk 0:02:22.3]} 18... h6 {[%clk 0:02:46.2]} 19. e4 {[%clk
0:02:21.9]} 19... dxe4 {[%clk 0:02:45]} 20. Rxe4 {[%clk 0:02:23.8]} 20... Ng6
{[%clk 0:02:44.5]} 21. Rce1 {[%clk 0:02:18.6]} 21... Rd7 {[%clk 0:02:42.8]} 22.
Qc4 {[%clk 0:01:47.7]} 22... Rad8 {[%clk 0:02:39.4]} 23. Re8+ {[%clk 0:01:48.4]}
23... Kh7 {[%clk 0:02:38.9]} 24. Rxd8 {[%clk 0:01:48.7]} 24... Rxd8 {[%clk
0:02:36.8]} 25. Qe4 {[%clk 0:01:48.9]} 25... Kg8 {[%clk 0:02:26.2]} 26. g4
{[%clk 0:01:41]} 26... Qd7 {[%clk 0:02:26.3]} 27. g5 {[%clk 0:01:41.6]} 27...
hxg5 {[%clk 0:02:23.6]} 28. Nxg5 {[%clk 0:01:43]} 28... Qd3 {[%clk 0:02:14.2]}
29. Qb7 {[%clk 0:01:18.8]} 29... Qd7 {[%clk 0:02:10.8]} 30. Qf3 {[%clk
0:01:17.5]} 30... Re8 {[%clk 0:02:05]} 31. Rd1 {[%clk 0:01:18.3]} 31... Qe7
{[%clk 0:02:05.6]} 32. Qf5 {[%clk 0:01:17.3]} 32... a5 {[%clk 0:01:46.7]} 33.
Rd7 {[%clk 0:01:06.6]} 33... Qe1+ {[%clk 0:01:46.6]} 34. Kh2 {[%clk 0:01:07.6]}
34... Qe5+ {[%clk 0:01:47.2]} 35. Qxe5 {[%clk 0:01:09]} 35... Nxe5 {[%clk
0:01:47.5]} 36. Rb7 {[%clk 0:01:09.3]} 36... f6 {[%clk 0:01:46.6]} 37. Nh3
{[%clk 0:00:57.9]} 37... Re6 {[%clk 0:01:42.3]} 38. Nf4 {[%clk 0:00:55.9]} 38...
Rd6 {[%clk 0:01:42.7]} 39. b3 {[%clk 0:00:48.3]} 39... Nd3 {[%clk 0:01:40.3]}
40. Nxd3 {[%clk 0:00:28.2]} 40... Rxd3 {[%clk 0:01:40]} 41. Rxb6 {[%clk
0:00:29.5]} 41... Rxc3 {[%clk 0:01:40.9]} 42. Ra6 {[%clk 0:00:30.5]} 42... Rc2
{[%clk 0:01:41.8]} 43. Rxa5 {[%clk 0:00:31.3]} 43... Rxf2 {[%clk 0:01:42.4]} 44.
Kg3 {[%clk 0:00:30.7]} 44... Rc2 {[%clk 0:01:41.6]} 45. Kf3 {[%clk 0:00:28.7]}
45... Kh7 {[%clk 0:01:41.4]} 46. g3 {[%clk 0:00:24.5]} 46... g5 {[%clk
0:01:41.5]} 47. Ke4 {[%clk 0:00:24.9]} 47... Kg6 {[%clk 0:01:42.3]} 48. Ra6
{[%clk 0:00:26.1]} 48... Re2+ {[%clk 0:01:36.9]} 49. Kf3 {[%clk 0:00:25.8]}
49... Rc2 {[%clk 0:01:37]} 50. Ra5 {[%clk 0:00:23]} 50... f5 {[%clk 0:01:33.8]}
51. g4 {[%clk 0:00:13.9]} 51... f4 {[%clk 0:01:29.4]} 52. Ra6+ {[%clk
0:00:14.3]} 52... Kg7 {[%clk 0:01:30]} 53. Ke4 {[%clk 0:00:15.5]} 53... c4
{[%clk 0:01:28.4]} 54. Ra7+ {[%clk 0:00:14.5]} 54... Kf6 {[%clk 0:01:27.8]} 55.
Ra6+ {[%clk 0:00:15.9]} 55... Kg7 {[%clk 0:01:27.2]} 56. Ra5 {[%clk 0:00:13.8]}
56... cxb3 {[%clk 0:01:23.3]} 57. Rxg5+ {[%clk 0:00:14.6]} 57... Kh6 {[%clk
0:01:23.1]} 58. Rh5+ {[%clk 0:00:14.7]} 58... Kg6 {[%clk 0:01:24]} 59. axb3
{[%clk 0:00:11.3]} 59... Rf2 {[%clk 0:01:21.3]} 60. Rf5 {[%clk 0:00:09.5]} 60...
Rb2 {[%clk 0:01:20]} 61. Rb5 {[%clk 0:00:10.1]} 61... Rf2 {[%clk 0:01:20.4]} 62.
b4 {[%clk 0:00:10.6]} 62... Rf1 {[%clk 0:01:21.3]} 63. Rf5 {[%clk 0:00:09.9]}
63... Rb1 {[%clk 0:01:20.7]} 64. b5 {[%clk 0:00:09.1]} 64... Rb4+ {[%clk
0:01:20.8]} 65. Kf3 {[%clk 0:00:10.3]} 65... Kh6 {[%clk 0:01:19.5]} 66. Rh5+
{[%clk 0:00:10]} 66... Kg6 {[%clk 0:01:20.4]} 67. Rc5 {[%clk 0:00:11.2]} 67...
Kf6 {[%clk 0:01:20.3]} 68. g5+ {[%clk 0:00:11.2]} 68... Kg6 {[%clk 0:01:21.2]}
69. Kg4 {[%clk 0:00:12.5]} 69... Rd4 {[%clk 0:01:19.3]} 70. Rc6+ {[%clk
0:00:08.2]} 70... Kg7 {[%clk 0:01:19.2]} 71. b6 {[%clk 0:00:09.5]} 71... Rb4
{[%clk 0:01:17.7]} 72. Rc7+ {[%clk 0:00:09.7]} 72... Kg6 {[%clk 0:01:18]} 73.
Rc6+ {[%clk 0:00:11.2]} 73... Kg7 {[%clk 0:01:19.2]} 74. g6 {[%clk 0:00:09.7]}
74... Kh6 {[%clk 0:01:19.3]} 75. Rd6 {[%clk 0:00:07.7]} 75... Ra4 {[%clk
0:01:13.7]} 76. Re6 {[%clk 0:00:05.9]} 76... Rb4 {[%clk 0:01:14.3]} 77. Rc6
{[%clk 0:00:05.7]} 77... Ra4 {[%clk 0:01:15.2]} 78. Kf5 {[%clk 0:00:07.2]} 78...
f3 {[%clk 0:01:14.7]} 79. Rc7 {[%clk 0:00:08.6]} 79... Ra5+ {[%clk 0:01:06.8]}
80. Kf6 {[%clk 0:00:09.7]} 80... Kh5 {[%clk 0:01:08.2]} 81. Rh7+ {[%clk
0:00:09.9]} 81... Kg4 {[%clk 0:01:09.2]} 82. g7 {[%clk 0:00:10.6]} 82... f2
{[%clk 0:01:09]} 83. g8=Q+ {[%clk 0:00:11.2]} 83... Kf3 {[%clk 0:01:08.6]} 84.
Rh3+ {[%clk 0:00:12.3]} 84... Ke2 {[%clk 0:01:08.9]} 85. Qg4+ {[%clk 0:00:13.7]}
85... Ke1 {[%clk 0:01:09.3]} 86. Rh1+ {[%clk 0:00:14]} 86... Kd2 {[%clk
0:01:09.6]} 87. Qf4+ {[%clk 0:00:14.6]} 87... Ke2 {[%clk 0:01:10]} 88. Qe4+
{[%clk 0:00:15.6]} 88... Kd2 {[%clk 0:01:10.7]} 89. Qb4+ {[%clk 0:00:16.6]}
89... Ke2 {[%clk 0:01:11.9]} 90. Qxa5 {[%clk 0:00:17.6]} 1-0

[Event "*** Titled Tuesday Blitz"]
[Site "Chess.com"]
[Date "2019.11.05"]
[Round "1"]
[White "Rodalquilar"]
[Black "coolthing"]
[Result "1/2-1/2"]
[WhiteElo "2669"]
[BlackElo "2350"]
[TimeControl "180+2"]
[EndTime "13:11:37 PST"]
[Termination "Game drawn by repetition"]

1. d4 {[%clk 0:03:01.9]} 1... Nf6 {[%clk 0:03:01.4]} 2. Bf4 {[%clk 0:03:02.2]}
2... g6 {[%clk 0:03:02.8]} 3. e3 {[%clk 0:03:01.8]} 3... Bg7 {[%clk 0:03:04.4]}
4. Nf3 {[%clk 0:03:02.9]} 4... O-O {[%clk 0:03:05.7]} 5. Be2 {[%clk 0:03:04.2]}
5... c5 {[%clk 0:03:07]} 6. O-O {[%clk 0:03:04.7]} 6... cxd4 {[%clk 0:03:06.1]}
7. exd4 {[%clk 0:03:05.6]} 7... d5 {[%clk 0:03:07.2]} 8. c3 {[%clk 0:03:05.9]}
8... Nc6 {[%clk 0:03:08.5]} 9. Nbd2 {[%clk 0:03:06.2]} 9... Bf5 {[%clk
0:03:05.8]} 10. Re1 {[%clk 0:03:02.3]} 10... Qb6 {[%clk 0:03:05.9]} 11. Qb3
{[%clk 0:03:02.7]} 11... Qxb3 {[%clk 0:02:48]} 12. axb3 {[%clk 0:03:03.4]} 12...
a6 {[%clk 0:02:45.8]} 13. b4 {[%clk 0:03:03.9]} 13... b5 {[%clk 0:02:42]} 14. h3
{[%clk 0:02:41.8]} 14... h5 {[%clk 0:02:32]} 15. Ra3 {[%clk 0:02:23.9]} 15...
Ra7 {[%clk 0:01:51.6]} 16. Rea1 {[%clk 0:02:22.6]} 16... Rfa8 {[%clk 0:01:52.5]}
17. Ne5 {[%clk 0:02:12.8]} 17... Nxe5 {[%clk 0:01:47.6]} 18. dxe5 {[%clk
0:01:42.2]} 18... Nd7 {[%clk 0:01:33]} 19. Bxb5 {[%clk 0:01:18.4]} 19... Nxe5
{[%clk 0:01:33.1]} 20. Rxa6 {[%clk 0:01:19.4]} 20... Rxa6 {[%clk 0:01:32.4]} 21.
Rxa6 {[%clk 0:01:21.3]} 21... Rxa6 {[%clk 0:01:26.3]} 22. Bxa6 {[%clk
0:01:23.2]} 22... Nd3 {[%clk 0:01:27]} 23. Bxd3 {[%clk 0:01:11.6]} 23... Bxd3
{[%clk 0:01:27.8]} 24. Nf3 {[%clk 0:00:47.5]} 24... Kf8 {[%clk 0:01:18.1]} 25.
Ne1 {[%clk 0:00:35.5]} 25... Bc4 {[%clk 0:01:15.8]} 26. Nc2 {[%clk 0:00:27.4]}
26... Bd3 {[%clk 0:01:13.1]} 27. Ne1 {[%clk 0:00:22.6]} 27... Bc4 {[%clk
0:01:13.9]} 28. f3 {[%clk 0:00:24.1]} 28... d4 {[%clk 0:01:13.1]} 29. Bd2 {[%clk
0:00:21.3]} 29... Ke8 {[%clk 0:01:12.4]} 30. Nc2 {[%clk 0:00:22.5]} 30... e5
{[%clk 0:01:10.2]} 31. Kf2 {[%clk 0:00:19]} 31... Kd7 {[%clk 0:01:08.5]} 32. f4
{[%clk 0:00:16.8]} 32... Bb3 {[%clk 0:00:51.8]} 33. Na1 {[%clk 0:00:08.9]} 33...
Bc4 {[%clk 0:00:52]} 34. fxe5 {[%clk 0:00:09.6]} 34... Bxe5 {[%clk 0:00:51.8]}
35. Nc2 {[%clk 0:00:11.1]} 35... dxc3 {[%clk 0:00:40.2]} 36. bxc3 {[%clk
0:00:13]} 36... Kc6 {[%clk 0:00:38.7]} 37. Ne3 {[%clk 0:00:14.2]} 37... Be6
{[%clk 0:00:37.4]} 38. c4 {[%clk 0:00:15.2]} 38... Bd4 {[%clk 0:00:37.3]} 39. c5
{[%clk 0:00:11.6]} 39... Bd5 {[%clk 0:00:32.4]} 40. g3 {[%clk 0:00:11.9]} 40...
Be6 {[%clk 0:00:31.4]} 41. h4 {[%clk 0:00:12.6]} 41... Kb5 {[%clk 0:00:29.6]}
42. Ke2 {[%clk 0:00:12.8]} 42... Bxe3 {[%clk 0:00:24.1]} 43. Kxe3 {[%clk
0:00:14.7]} 43... Kc4 {[%clk 0:00:22.5]} 44. Ke4 {[%clk 0:00:10.4]} 44... Kb5
{[%clk 0:00:21]} 45. Ke5 {[%clk 0:00:11.9]} 45... Kc6 {[%clk 0:00:21.9]} 46. Be3
{[%clk 0:00:09.3]} 46... Bc4 {[%clk 0:00:20.8]} 47. Kd4 {[%clk 0:00:09.6]} 47...
Be6 {[%clk 0:00:21.9]} 48. Bc1 {[%clk 0:00:11]} 48... Bd7 {[%clk 0:00:20.3]} 49.
Ke5 {[%clk 0:00:12]} 49... Be6 {[%clk 0:00:21.7]} 50. Bf4 {[%clk 0:00:13.3]}
50... Kb5 {[%clk 0:00:22.2]} 51. Kd6 {[%clk 0:00:14.3]} 51... Kxb4 {[%clk
0:00:19.7]} 52. c6 {[%clk 0:00:14]} 52... Kb5 {[%clk 0:00:20.5]} 53. Be3 {[%clk
0:00:12.3]} 53... Ka6 {[%clk 0:00:20.1]} 54. Kc7 {[%clk 0:00:13.4]} 54... Bd5
{[%clk 0:00:16.1]} 55. Kd7 {[%clk 0:00:09.4]} 55... Be6+ {[%clk 0:00:17.4]} 56.
Kd8 {[%clk 0:00:09.1]} 56... Bf5 {[%clk 0:00:13.6]} 57. Kc7 {[%clk 0:00:07.5]}
57... Be4 {[%clk 0:00:11.7]} 58. Kd6 {[%clk 0:00:08.9]} 58... Bf5 {[%clk
0:00:12.1]} 59. Ke5 {[%clk 0:00:10.2]} 59... Be6 {[%clk 0:00:13.1]} 60. Kd6
{[%clk 0:00:09.9]} 60... Bf5 {[%clk 0:00:13.7]} 61. Ke7 {[%clk 0:00:10.5]} 61...
Be6 {[%clk 0:00:14.8]} 62. Ke8 {[%clk 0:00:11.7]} 62... Kb5 {[%clk 0:00:13.2]}
63. c7 {[%clk 0:00:11.5]} 63... Kc6 {[%clk 0:00:14]} 64. Kd8 {[%clk 0:00:12.2]}
64... Kb7 {[%clk 0:00:15.3]} 65. Bf4 {[%clk 0:00:13.6]} 65... Bc8 {[%clk
0:00:15.9]} 66. Ke7 {[%clk 0:00:14.3]} 66... Be6 {[%clk 0:00:17.5]} 67. Ke8
{[%clk 0:00:15.9]} 67... Bd5 {[%clk 0:00:16.3]} 68. Kd7 {[%clk 0:00:15.7]} 68...
Be6+ {[%clk 0:00:17.6]} 69. Kd6 {[%clk 0:00:16.7]} 69... Bc8 {[%clk 0:00:18.2]}
70. Ke5 {[%clk 0:00:17.3]} 70... Be6 {[%clk 0:00:19.6]} 71. Kf6 {[%clk
0:00:18.6]} 71... Kc8 {[%clk 0:00:20.2]} 72. Ke7 {[%clk 0:00:19.9]} 72... Bd5
{[%clk 0:00:21]} 73. Be5 {[%clk 0:00:21.3]} 73... Be6 {[%clk 0:00:22.3]} 74. Bd6
{[%clk 0:00:22.8]} 74... Bb3 {[%clk 0:00:23.2]} 75. Kf6 {[%clk 0:00:24.4]} 75...
Ba2 {[%clk 0:00:24.1]} 76. Ke5 {[%clk 0:00:25.8]} 76... Bb3 {[%clk 0:00:25.4]}
77. Kf4 {[%clk 0:00:27.3]} 77... Be6 {[%clk 0:00:25.8]} 78. Kg5 {[%clk
0:00:28.7]} 78... Bd7 {[%clk 0:00:26.3]} 79. Kf6 {[%clk 0:00:30.3]} 79... Be6
{[%clk 0:00:27.9]} 80. Ke7 {[%clk 0:00:31.8]} 80... Bd5 {[%clk 0:00:27.5]} 81.
Be5 {[%clk 0:00:33.3]} 81... Be6 {[%clk 0:00:28.1]} 82. Bf4 {[%clk 0:00:34.8]}
82... Bd5 {[%clk 0:00:29.2]} 83. Kd6 {[%clk 0:00:36.3]} 83... Be6 {[%clk
0:00:30.4]} 84. Kc6 {[%clk 0:00:37.9]} 84... Bf5 {[%clk 0:00:30.3]} 85. Kd5
{[%clk 0:00:38.6]} 85... Be6+ {[%clk 0:00:31.6]} 86. Kd6 {[%clk 0:00:39.6]}
86... Bf5 {[%clk 0:00:32.6]} 87. Ke7 {[%clk 0:00:41.1]} 87... Be6 {[%clk
0:00:34]} 88. Kf6 {[%clk 0:00:42.5]} 88... Bd5 {[%clk 0:00:35]} 89. Kg7 {[%clk
0:00:42.5]} 89... Be6 {[%clk 0:00:36.1]} 90. Kh6 {[%clk 0:00:44]} 90... Bd5
{[%clk 0:00:36.6]} 91. Kg5 {[%clk 0:00:44.8]} 91... Be6 {[%clk 0:00:37.9]} 92.
Kf6 {[%clk 0:00:46.2]} 92... Bd5 {[%clk 0:00:39]} 93. Bd6 {[%clk 0:00:47.7]}
93... Be6 {[%clk 0:00:38.8]} 94. Ke5 {[%clk 0:00:48.8]} 94... Bc4 {[%clk
0:00:39.4]} 95. Kf4 {[%clk 0:00:50.2]} 95... Be6 {[%clk 0:00:40.5]} 96. Kg5
{[%clk 0:00:51.8]} 96... Bf5 {[%clk 0:00:41.2]} 97. Be5 {[%clk 0:00:51.8]} 97...
Be6 {[%clk 0:00:41.4]} 98. Bd6 {[%clk 0:00:53.2]} 1/2-1/2